Workbook

Sheet Front Sheet
F7: Electricity Network Innovation Competition Full Submission
F8: Spreadsheet
F10: (2019 version 1.1)
F11: Appendix A
C15: Licensee Name: | D15: Western Power Distribution
C17: Submission Date: | D17: 2019-07-29
B21: Input cells
B22: Totals cells (of formula within worksheet)
B23: Referencing to other worksheets
B24: Check cells
B25: No Input
B26: Descriptions and pack data
B27: Ofgem Input cells

Sheet NIC Funding Request
A1: NIC Funding Request
C2: 2019/20 | D2: 2020/21 | E2: 2021/22 | F2: 2022/23 | G2: 2023/24 | H2: 2024/25 | I2: 2025/26 | J2: Total
A3: Total Project Cost | B3: From Project Cost Summary sheet
B4: Labour | C4: 78.492 | D4: 157.9608 | E4: 116.5008 | F4: 137.9952 | G4: 0 | H4: 0 | I4: 0 | J4: =SUM(C4:I4) -> 490.9488
B5: Equipment | C5: 0 | D5: 1003.046465 | E5: 186.0151925 | F5: 0 | G5: 0 | H5: 0 | I5: 0 | J5: 1189.061658
B6: Contractors | C6: 597.1678465 | D6: 1307.493662 | E6: 388.7319791 | F6: 399.9728496 | G6: 0 | H6: 0 | I6: 0 | J6: 2693.366337
B7: IT | C7: 0 | D7: 420.156 | E7: 0 | F7: 0 | G7: 0 | H7: 0 | I7: 0 | J7: 420.156
B8: IPR Costs | C8: 0 | D8: 0 | E8: 0 | F8: 0 | G8: 0 | H8: 0 | I8: 0 | J8: 0
B9: Travel & Expenses | C9: 23.96291982 | D9: 36.30458083 | E9: 28.02626667 | F9: 16.40112 | G9: 0 | H9: 0 | I9: 0 | J9: 104.6948873
A10: Payments to users & Contingency | C10: 69.96227663 | D10: 296.9336508 | E10: 80.22742383 | F10: 62.83611696 | G10: 0 | H10: 0 | I10: 0 | J10: 509.9594683
B11: Decommissioning | C11: 0 | D11: 0 | E11: 0 | F11: 0 | G11: 0 | H11: 0 | I11: 0 | J11: 0
B12: Other | C12: 0 | D12: 44.375 | E12: 83 | F12: 93 | G12: 0 | H12: 0 | I12: 0 | J12: 220.375
B13: Total | C13: =SUM(C4:C12) -> 769.585043 | D13: =SUM(D4:D12) -> 3266.270159 | E13: =SUM(E4:E12) -> 882.5016621 | F13: =SUM(F4:F12) -> 710.2052866 | G13: =SUM(G4:G12) -> 0 | H13: 0 | I13: 0 | J13: 5628.562151
A15: External funding | B15: Any funding that will be received from Project Partners and/or External Funders - from Project Cost Summary sheet
B16: Labour | C16: 0 | D16: 0 | E16: 0 | F16: 0 | G16: 0 | H16: 0 | I16: 0 | J16: =SUM(C16:I16) -> 0
B17: Equipment | C17: 0 | D17: 0 | E17: 0 | F17: 0 | G17: 0 | H17: 0 | I17: 0 | J17: 0
B18: Contractors | C18: 83.00764465 | D18: 174.9255062 | E18: 42.09319791 | F18: 41.22728496 | G18: 0 | H18: 0 | I18: 0 | J18: 341.2536337
B19: IT | C19: 0 | D19: 0 | E19: 0 | F19: 0 | G19: 0 | H19: 0 | I19: 0 | J19: 0
B20: IPR Costs | C20: 0 | D20: 0 | E20: 0 | F20: 0 | G20: 0 | H20: 0 | I20: 0 | J20: 0
B21: Travel & Expenses | C21: 0 | D21: 0 | E21: 0 | F21: 0 | G21: 0 | H21: 0 | I21: 0 | J21: 0
A22: Payments to users & Contingency | C22: 0 | D22: 0 | E22: 0 | F22: 0 | G22: 0 | H22: 0 | I22: 0 | J22: 0
B23: Decommissioning | C23: 0 | D23: 0 | E23: 0 | F23: 0 | G23: 0 | H23: 0 | I23: 0 | J23: 0
B24: Other | C24: 0 | D24: 0 | E24: 0 | F24: 0 | G24: 0 | H24: 0 | I24: 0 | J24: 0
B25: Total | C25: =SUM(C16:C24) -> 83.00764465 | D25: 174.9255062 | E25: 42.09319791 | F25: 41.22728496 | G25: =SUM(G16:G24) -> 0 | H25: 0 | I25: 0 | J25: 341.2536337
A27: Licensee extra contribution | B27: Any funding from the Licensee which is in excess of the Licensee Compulsory Contribution - from Project Cost Summary sheet
B28: Labour | C28: 0 | D28: 0 | E28: 0 | F28: 0 | G28: 0 | H28: 0 | I28: 0 | J28: =SUM(C28:I28) -> 0
B29: Equipment | C29: 0 | D29: 0 | E29: 0 | F29: 0 | G29: 0 | H29: 0 | I29: 0 | J29: 0
B30: Contractors | C30: 0 | D30: 0 | E30: 0 | F30: 0 | G30: 0 | H30: 0 | I30: 0 | J30: 0
B31: IT | C31: 0 | D31: 0 | E31: 0 | F31: 0 | G31: 0 | H31: 0 | I31: 0 | J31: 0
B32: IPR Costs | C32: 0 | D32: 0 | E32: 0 | F32: 0 | G32: 0 | H32: 0 | I32: 0 | J32: 0
B33: Travel & Expenses | C33: 0 | D33: 0 | E33: 0 | F33: 0 | G33: 0 | H33: 0 | I33: 0 | J33: 0
A34: Payments to users & Contingency | C34: 0 | D34: 0 | E34: 0 | F34: 0 | G34: 0 | H34: 0 | I34: 0 | J34: 0
B35: Decommissioning | C35: 0 | D35: 0 | E35: 0 | F35: 0 | G35: 0 | H35: 0 | I35: 0 | J35: 0
B36: Other | C36: 0 | D36: 0 | E36: 0 | F36: 0 | G36: 0 | H36: 0 | I36: 0 | J36: 0
B37: Total | C37: =SUM(C28:C36) -> 0 | D37: 0 | E37: 0 | F37: 0 | G37: =SUM(G28:G36) -> 0 | H37: 0 | I37: 0 | J37: 0
A39: Initial Net Funding Required
B40: Labour | C40: =C4-C16-C28 -> 78.492 | D40: =D4-D16-D28 -> 157.9608 | E40: =E4-E16-E28 -> 116.5008 | F40: =F4-F16-F28 -> 137.9952 | G40: =G4-G16-G28 -> 0 | H40: 0 | I40: 0 | J40: =J4-J16-J28 -> 490.9488
B41: Equipment | C41: =C5-C17-C29 -> 0 | D41: =D5-D17-D29 -> 1003.046465 | E41: =E5-E17-E29 -> 186.0151925 | F41: =F5-F17-F29 -> 0 | G41: =G5-G17-G29 -> 0 | H41: 0 | I41: 0 | J41: 1189.061658
B42: Contractors | C42: =C6-C18-C30 -> 514.1602019 | D42: =D6-D18-D30 -> 1132.568156 | E42: =E6-E18-E30 -> 346.6387812 | F42: =F6-F18-F30 -> 358.7455647 | G42: =G6-G18-G30 -> 0 | H42: 0 | I42: 0 | J42: 2352.112704
B43: IT | C43: =C7-C19-C31 -> 0 | D43: =D7-D19-D31 -> 420.156 | E43: =E7-E19-E31 -> 0 | F43: =F7-F19-F31 -> 0 | G43: =G7-G19-G31 -> 0 | H43: 0 | I43: 0 | J43: 420.156
B44: IPR Costs | C44: =C8-C20-C32 -> 0 | D44: =D8-D20-D32 -> 0 | E44: =E8-E20-E32 -> 0 | F44: =F8-F20-F32 -> 0 | G44: =G8-G20-G32 -> 0 | H44: 0 | I44: 0 | J44: 0
B45: Travel & Expenses | C45: =C9-C21-C33 -> 23.96291982 | D45: =D9-D21-D33 -> 36.30458083 | E45: =E9-E21-E33 -> 28.02626667 | F45: =F9-F21-F33 -> 16.40112 | G45: =G9-G21-G33 -> 0 | H45: 0 | I45: 0 | J45: 104.6948873
A46: Payments to users & Contingency | C46: =C10-C22-C34 -> 69.96227663 | D46: =D10-D22-D34 -> 296.9336508 | E46: =E10-E22-E34 -> 80.22742383 | F46: =F10-F22-F34 -> 62.83611696 | G46: =G10-G22-G34 -> 0 | H46: 0 | I46: 0 | J46: 509.9594683
B47: Decommissioning | C47: =C11-C23-C35 -> 0 | D47: =D11-D23-D35 -> 0 | E47: =E11-E23-E35 -> 0 | F47: =F11-F23-F35 -> 0 | G47: =G11-G23-G35 -> 0 | H47: 0 | I47: 0 | J47: 0 | K47: Check Total = to Initial Net Funding request
B48: Other | C48: =C12-C24-C36 -> 0 | D48: =D12-D24-D36 -> 44.375 | E48: =E12-E24-E36 -> 83 | F48: =F12-F24-F36 -> 93 | G48: =G12-G24-G36 -> 0 | H48: 0 | I48: 0 | J48: 220.375 | K48: in Project Cost Summary
B49: Total | C49: =C13-C25-C37 -> 686.5773983 | D49: 3091.344653 | E49: 840.4084642 | F49: 668.9780016 | G49: =G13-G25-G37 -> 0 | H49: 0 | I49: 0 | J49: =J13-J25-J37 -> 5287.308517 | K49: OK
A51: Direct Benefits | B51: from Direct Benefits sheet
B52: Total | C52: 0 | D52: 0 | E52: 0 | F52: 0 | G52: 0 | H52: 0 | I52: 0 | J52: =SUM(C52:I52) -> 0
A56: Licensee Compulsory Contribution / Direct Benefits
B57: Labour | C57: 7.8492 | D57: 15.79608 | E57: 11.65008 | F57: 13.79952 | G57: 0 | H57: 0 | I57: 0 | J57: =SUM(C57:I57) -> 49.09488
B58: Equipment | C58: 0 | D58: 100.3046465 | E58: 18.60151925 | F58: 0 | G58: 0 | H58: 0 | I58: 0 | J58: 118.9061658
B59: Contractors | C59: 51.41602019 | D59: 113.2568156 | E59: 34.66387812 | F59: 35.87455647 | G59: 0 | H59: 0 | I59: 0 | J59: 235.2112704
B60: IT | C60: 0 | D60: 42.0156 | E60: 0 | F60: 0 | G60: 0 | H60: 0 | I60: 0 | J60: 42.0156
B61: IPR Costs | C61: 0 | D61: 0 | E61: 0 | F61: 0 | G61: 0 | H61: 0 | I61: 0 | J61: 0
B62: Travel & Expenses | C62: 2.396291982 | D62: 3.630458083 | E62: 2.802626667 | F62: 1.640112 | G62: 0 | H62: 0 | I62: 0 | J62: 10.46948873
A63: Payments to users & Contingency | C63: 6.996227663 | D63: 29.69336508 | E63: 8.022742383 | F63: 6.473691696 | G63: 0 | H63: 0 | I63: 0 | J63: 51.18602683
B64: Decommissioning | C64: 0 | D64: 0 | E64: 0 | F64: 0 | G64: 0 | H64: 0 | I64: 0 | J64: 0 | K64: of Total Initial Net Funding Required
B65: Other | C65: 0 | D65: 4.4375 | E65: 8.3 | F65: 9.3 | G65: 0 | H65: 0 | I65: 0 | J65: 22.0375 | K65: =IF(J66>=J49*0.1,"OK","ERROR") -> OK
B66: Total | C66: =SUM(C57:C65) -> 68.65773983 | D66: 309.1344653 | E66: 84.04084642 | F66: 67.08788016 | G66: =SUM(G57:G65) -> 0 | H66: 0 | I66: 0 | J66: 528.9209317 | K66: Check that Total is = or > than
K67: Total Direct Benefits
K68: =IF(J66>=J52,"OK","ERROR") -> OK
A69: Outstanding Funding required
B70: Labour | C70: =C40-C57 -> 70.6428 | D70: 142.16472 | E70: 104.85072 | F70: =F40-F57 -> 124.19568 | G70: 0 | H70: 0 | I70: 0 | J70: =SUM(C70:I70) -> 441.85392
B71: Equipment | C71: 0 | D71: 902.7418189 | E71: 167.4136733 | F71: 0 | G71: 0 | H71: 0 | I71: 0 | J71: 1070.155492
B72: Contractors | C72: 462.7441817 | D72: 1019.31134 | E72: 311.9749031 | F72: 322.8710082 | G72: 0 | H72: 0 | I72: 0 | J72: 2116.901433
B73: IT | C73: 0 | D73: 378.1404 | E73: 0 | F73: 0 | G73: 0 | H73: 0 | I73: 0 | J73: 378.1404
B74: IPR Costs | C74: 0 | D74: 0 | E74: 0 | F74: 0 | G74: 0 | H74: 0 | I74: 0 | J74: 0
B75: Travel & Expenses | C75: 21.56662784 | D75: 32.67412275 | E75: 25.22364 | F75: 14.761008 | G75: 0 | H75: 0 | I75: 0 | J75: 94.22539859
A76: Payments to users & Contingency | C76: 62.96604897 | D76: 267.2402858 | E76: 72.20468145 | F76: 56.36242527 | G76: 0 | H76: 0 | I76: 0 | J76: 458.7734414
B77: Decommissioning | C77: 0 | D77: 0 | E77: 0 | F77: 0 | G77: 0 | H77: 0 | I77: 0 | J77: 0 | K77: Check that Total is =to
B78: Other | C78: 0 | D78: 39.9375 | E78: 74.7 | F78: 83.7 | G78: 0 | H78: 0 | I78: 0 | J78: 198.3375 | K78: Total Outstanding Funding required
B79: Total | C79: 617.9196585 | D79: 2782.210188 | E79: 756.3676178 | F79: 601.8901215 | G79: 0 | H79: 0 | I79: 0 | J79: 4758.387585 | K79: OK
A81: balance | B81: 4715.786591 | C81: 0 | D81: =B81-C79-D79 -> 1315.656745 | E81: =D81-E79+D82 -> 589.4463437 | F81: =E81-F79+E82 -> -2.918262297 | G81: =F81-G79+F82 -> 0.01437811013 | H81: =G81-H79+G82 -> -0.0001413108061 | I81: =H81-I79+H82 -> -7.01268095e-05 | J81: =G81-G79+G82 -> -0.0001413108061 | K81: =B81 -> 4715.786591
A82: interest | C82: 0 | D82: =((B81+D81)/2)*$D86 -> 30.15721668 | E82: =((D81+E81)/2)*$D86 -> 9.525515443 | F82: =((E81+F81)/2)*$D86 -> 2.932640407 | G82: =((F81+G81)/2)*$D86 -> -0.01451942093 | H82: =((G81+H81)/2)*$D86 -> 7.118399661e-05 | I82: -1.057188078e-06 | J82: =((G81+J81)/2)*$D86 -> 7.118399661e-05 | K82: =SUM(D82:J82) -> 42.60099442
K83: =K81+K82 -> 4758.387585
B85: Bank of England interest rate | D85: 0.005 | G85: NIC FUNDING REQUEST £ | K85: =K81 -> 4715.786591
B86: interest rate used in calculation | D86: =D85+0.5% -> 0.01
B87: RPI adjustment | C87: 2019/20 | D87: 2020/21 | E87: 2021/22 | F87: 2022/23 | G87: 2023/24 | H87: 2024/25 | I87: 2025/26
B88: Annual inflation | C88: 0.0275 | D88: 0.032 | E88: 0.0318 | F88: 0.031 | G88: 0.031 | H88: 0.031 | I88: 0.031
A89: n.b the NIC Funding Request calculation should use the Bank of England Base rate plus 0.5% on 30 June of the year in which the Full Submission is made.
C92: Bank of England Base Rate: https://www.bankofengland.co.uk/boeapps/iadb/Repo.asp
C93: RPI Forecast 2018/19-202223: https://www.gov.uk/government/statistics/forecasts-for-the-uk-economy-may-2019
C94: RPI for 2024/25 and thereafter is an extension from 2023/24 as no further consistent forecast is available.
